Cogmind - Beta 13 @@@ ROGUE MODE // 2024.03.10 @ 01:54:29 // Winter2022/Polymind Player: Ferns Result: Self-destructed Performance ------------- Evolutions (1) 500 Regions Visited (2) 400 Robots Destroyed (12) 60 Value Destroyed (290) 290 Prototype IDs (0) 0 Alien Tech Used (0) 0 Bonus (1405) 1405 TOTAL SCORE: 2425 Bonus ------- Polymind Skill 1380 High Alert Combat Kills 25 Cogmind --------- Core Integrity 280/400 Matter 94/100 Energy 215/215 System Corruption 0% Temperature Cool (0) Movement Treading (160) Location -9/Materials Parts ------- > --- POWER (1) -------- Improved Ion Engine > --- PROPULSION (2) --- Light Treads Light Treads > --- UTILITY (3) ------ Heat Sink Heat Sink > --- WEAPON (2) ------- Beam Rifle Heavy Assault Rifle > --- INVENTORY (1) ---- (None) Peak State ------------ > --- POWER ------------ Improved Ion Engine > --- PROPULSION ------- Light Treads Light Treads > --- UTILITY ---------- Heat Sink Heat Sink Light Armor Plating > --- WEAPON ----------- Beam Rifle Heavy Assault Rifle > --- INVENTORY -------- (None) [Rating: 11] Favorites ----------- Power Improved Ion Engine Engine Improved Ion Engine Propulsion Light Treads Treads Light Treads Wheel Compact Wheel Flight Unit Flight Unit Utility Heat Sink Device Heat Sink Storage Small Storage Unit Protection Light Armor Plating Weapon Beam Rifle Energy Gun Beam Rifle Ballistic Gun Heavy Assault Rifle Build | -11 -10 -9 ------- Run | Yrd Mat Mat Slots Evolved . | . . . Power . | . . . Propulsion . | . . . Utility . | . . . Weapon . | . . . Parts Attached . | . . . Power . | . . . Engine . | . . . Core . | . . . Reactor . | . . . Propulsion . | . . . Treads . | . . . Leg . | . . . Wheel . | . . . Hover . | . . . Flight . | . . . Utility . | . . . Device . | . . . Storage . | . . . Processor . | . . . Hackware . | . . . Protection . | . . . Artifact . | . . . Weapon . | . . . Energy Gun . | . . . Energy Cannon . | . . . Ballistic Gun . | . . . Ballistic Cannon . | . . . Launcher . | . . . Special Weapon . | . . . Impact Weapon . | . . . Slashing Weapon . | . . . Piercing Weapon . | . . . Special Melee Weapon . | . . . Unidentified Prototypes . | . . . Parts Lost 4 | . 2 2 Power 2 | . 2 . Propulsion 1 | . . 1 Utility 1 | . . 1 Weapon . | . . . Highest Loss Streak 2 | . 1 2 To Critical Strikes . | . . . Average Slot Usage (%) 89 | . 96 86 Engine 14 | . 18 12 Treads 14 | . . 21 Wheel 12 | . 28 4 Flight 5 | . 15 1 Device 19 | . 14 21 Storage 6 | . 14 2 Energy Gun 6 | . . 10 Ballistic Gun 9 | . 7 11 Naked Turns 4 | . 2 2 Heaviest Build 18 | 9 9 18 Greatest Support 40 | 32 32 40 Greatest Overweight (x) . | . . . Average Overweight (x) . | . . . Largest Inventory Capacity 4 | 4 4 1 Average Capacity 1 | 1 2 . Most Carried 3 | . 3 . Average Carried . | . 1 . Final Capacity 4 | 4 . 1 Final Carried . | . . . Class Distribution -------------------- 57% | Sentry 23% | Recycler 11% | Swarmer 6% | Worker Dominant Class ---------------- Recycler | -10/Materials Sentry | -9/Materials Resources | -11 -10 -9 ----------- Run | Yrd Mat Mat Matter Collected 80 | . 34 46 Remotely . | . . . Salvage Created 137 | . 35 102 Parts 26 | . 12 14 Haulers Intercepted . | . . . Recyclers Shooed . | . . . Parts Field Recycled . | . . . Retrieved Matter . | . . . Parts Self-Destructed . | . . . Prevented . | . . . Kills | -11 -10 -9 ------- Run | Yrd Mat Mat Combat Hostiles Destroyed 12 | . 5 7 Guns 12 | . 5 7 Classes Destroyed 2 | . 2 . Swarmer 6 | . 3 3 Grunt 6 | . 2 4 Best Kill Streak 4 | . 2 4 Combat Bots Only 4 | . 2 4 Max Kills in Single Turn 1 | . 1 1 Gunslinging . | . . . Exploded . | . . . Melee . | . . . Uniques/NPCs Destroyed . | . . . Combat | -11 -10 -9 -------- Run | Yrd Mat Mat Hostile Shots Fired 114 | . 50 64 Missed 42 | . 26 16 Damage Taken 813 | . 270 543 Core 200 | . 80 120 Absorbed by Shields . | . . . Core Remaining (%) 84 | 100 68 . Volleys Fired 52 | . 37 15 Largest 2 | . 1 2 Hottest 79 | . 20 79 Shots Fired 67 | . 37 30 Gun 67 | . 37 30 Cannon . | . . . Launcher . | . . . Special . | . . . Kinetic 52 | . 37 15 Thermal 15 | . . 15 Explosive . | . . . Electromagnetic . | . . . Robot Hit Streak 9 | . 3 9 Robot Miss Streak 7 | . 7 2 Penetration Max . | . . . Secondary Targets 2 | . . 2 Max Gunslinging Chain 1 | . . 1 Shots Hit Robots 42 | . 19 23 Core Hits 20 | . 9 11 Critical Kills . | . . . Critical Parts Destroyed . | . . . Critical Strikes 3 | . . 3 Burn 3 | . . 3 Melee Attacks . | . . . Impact . | . . . Slashing . | . . . Piercing . | . . . Sneak Attacks . | . . . Combat Hostiles . | . . . Follow-up Attacks . | . . . Damage Inflicted 534 | . 164 370 Guns 534 | . 164 370 Cannons . | . . . Explosions . | . . . Melee . | . . . Ramming . | . . . Kinetic 373 | . 164 209 Thermal 161 | . . 161 Explosive . | . . . Electromagnetic . | . . . Impact . | . . . Slashing . | . . . Piercing . | . . . Highest Corruption . | . . . Average Corruption . | . . . Corruption Purged . | . . . Corruption Blocked . | . . . Overload Shots . | . . . Overflow Damage . | . . . Projectiles . | . . . Explosions . | . . . Melee . | . . . Knockbacks . | . . . Impact . | . . . Kinetic . | . . . Secondary . | . . . Self-Inflicted Damage . | . . . Shots . | . . . Rammed 1 | . . 1 Targets Rammed 1 | . . 1 Kicked . | . . . Crushed . | . . . Highest Temperature 87 | . 55 87 Average Temperature 26 | . 17 43 Received Heat Transfer 345 | . 111 234 Siege Activations . | . . . Robots Corrupted . | . . . Combat Hostiles . | . . . Parts Fried . | . . . Impact Corruptions . | . . . Robots Melted . | . . . Combat Hostiles . | . . . Parts Melted 1 | . . 1 Heat Transferred 629 | . . 629 Parts Sabotaged . | . . . Parts Stolen . | . . . Parts Stripped . | . . . Power Chain Reactions . | . . . Alert | -11 -10 -9 ------- Run | Yrd Mat Mat Peak Influence 493 | . 305 493 Initial 128 | . . 128 Average 262 | . 93 352 Maximum Alert Level 2 | . 1 2 Low Security (%) 31 | 100 82 4 Level 1 45 | . 17 60 Level 2 22 | . . 34 Level 3 . | . . . Level 4 . | . . . Level 5 . | . . . High Security . | . . . Max Security . | . . . Squads Dispatched . | . . . Investigation . | . . . Extermination . | . . . Reinforcement . | . . . Assault . | . . . Garrison . | . . . Intercept . | . . . Searches Triggered . | . . . Construction Impeded . | . . . Haulers Reinforced . | . . . Active Scanning Responses . | . . . Cargo Convoy Interrupts . | . . . Stealth | -11 -10 -9 --------- Run | Yrd Mat Mat Distress Signals 1 | . 1 . Communications Jammed . | . . . Distress Signals . | . . . Times Spotted 27 | . 14 13 Peak Tracking Total 6 | . 6 5 Tactical Retreats 4 | . 3 1 Traps | -11 -10 -9 ------- Run | Yrd Mat Mat Traps Triggered . | . . . Indirectly . | . . . Trap Hack Attempts . | . . . Triggered . | . . . Disarmed . | . . . Reprogrammed . | . . . Reused . | . . . Traps Extracted . | . . . Installed . | . . . Triggered . | . . . Machines | -11 -10 -9 ---------- Run | Yrd Mat Mat Machines Disabled . | . . . Max in Single Turn . | . . . Machines Repaired . | . . . Machines Dismantled . | . . . Machines Sabotaged . | . . . Overloaded Fab Kills . | . . . Hacking | -11 -10 -9 --------- Run | Yrd Mat Mat Machines Accessed . | . . . Terminals . | . . . Fabricators . | . . . Repair Stations . | . . . Recycling Units . | . . . Scanalyzers . | . . . Garrison Access . | . . . Total Hacks . | . . . Successful . | . . . Failed . | . . . Catastrophic . | . . . Database Lockouts . | . . . Manual . | . . . Terminals . | . . . Fabricators . | . . . Repair Stations . | . . . Recycling Units . | . . . Scanalyzers . | . . . Garrison Access . | . . . Terminal Hacks . | . . . Fabricator Hacks . | . . . Repair Station Hacks . | . . . Recycling Unit Hacks . | . . . Scanalyzer . | . . . Garrison Access Hacks . | . . . Unauthorized Hacks . | . . . Terminals . | . . . Fabricators . | . . . Repair Stations . | . . . Recycling Units . | . . . Scanalyzers . | . . . Garrison Access . | . . . Data Cores Recovered . | . . . Used . | . . . Hacking Detections . | . . . Full Trace Events . | . . . Feedback Events . | . . . Feedback Blocked . | . . . Robot Schematics Acquired . | . . . Robots Built . | . . . Authchips . | . . . Time . | . . . Total Robot Build Rating . | . . . Part Schematics Acquired . | . . . Parts Built . | . . . Authchips . | . . . Time . | . . . Total Part Build Rating . | . . . Parts Repaired . | . . . Time . | . . . Parts Recycled . | . . . Recycled Matter . | . . . Retrieved Matter . | . . . Retrieved Components . | . . . Parts Scanalyzed . | . . . Part Schematics Acquired . | . . . Parts Damaged . | . . . Bothacking | -11 -10 -9 ------------ Run | Yrd Mat Mat Used RIF Installer . | . . . Robots Hacked 2 | . 1 1 Non-combat . | . . . Combat 2 | . 1 1 Robot Hacks Applied 2 | . 1 1 find_shortcuts 2 | . 1 1 Relay Couplers Released . | . . . Fabnet Peak Effective % . | . . . Robots Rewired . | . . . Allies Hacked . | . . . Hacks Repelled . | . . . Allies | -11 -10 -9 -------- Run | Yrd Mat Mat Total Allies . | . . . Largest Group . | . . . Highest-Rated Group . | . . . Highest-Rated Ally . | . . . Total Orders . | . . . Ally Attacks . | . . . Total Damage . | . . . Kills . | . . . Allies Corrupted . | . . . Allies Melted . | . . . Intel | -11 -10 -9 ------- Run | Yrd Mat Mat Robot Analysis Total 4 | 1 1 2 Derelict Logs Recovered . | . . . Drone Launches . | . . . Drone Recoveries . | . . . Exploration | -11 -10 -9 ------------- Run | Yrd Mat Mat Turns Passed 1201 | 13 397 791 Spaces Moved 666 | 22 404 240 Core 22 | 17 2 3 Treads 68 | . . 68 Legs . | . . . Wheels 383 | 5 280 98 Hover . | . . . Flight 193 | . 122 71 Fastest Speed 37 | 50 37 37 Average Speed 83 | 61 80 89 Slowest Speed 160 | 100 100 160 Overloaded Moves . | . . . Propulsion Burnouts . | . . . Robots Hopped 1 | . 1 . Cave-ins Triggered . | . . . Exploration Rate (%) 29 | 4 60 23 Regions Visited 2 Branch Regions . Pre-discovered Areas . | . . . Known Exits Taken . | . . . Unknown Exits Taken 2 | 1 1 . Scrap Searched . | . . . Spaces Dug . | . . . Terrain Destroyed . | . . . Melee . | . . . Projectile . | . . . AOE . | . . . Terrain Rammed . | . . . Walls Destroyed . | . . . Machines Disabled . | . . . Actions | -11 -10 -9 --------- Run | Yrd Mat Mat Total 1250 | 21 443 786 Wait 531 | . 1 530 Move 662 | 21 401 240 Hop 1 | . 1 . Pick Up 3 | . 3 . Fast Attach . | . . . Attach . | . . . Detach . | . . . Swap . | . . . Drop . | . . . Fire 52 | . 37 15 Melee . | . . . Ram 1 | . . 1 Kick . | . . . Crush . | . . . Escape Stasis . | . . . Rewire . | . . . Trap . | . . . Miscellaneous . | . . . Route ------- -11/Scrapyard -10/Materials -9/Materials History --------- Turn | Location | Event 3 | -11/Scrapyard | Discovered new exit (range 15) 14 | -11/Scrapyard | Entered Materials 403 | -10/Materials | Discovered new exit (range 16) 411 | -10/Materials | Entered another Materials area 1202 | -9/Materials | Self-destructed Last Messages --------------- 00555_ Acquired 13 Protomatter. 00560_ Acquired 9 Protomatter. 00582_ S-10 Pest destroyed. 00582_ Switching to secondary target: S-10 Pest. 00585_ S-10 Pest destroyed. 00585_ Switching to secondary target: S-10 Pest. 00594_ S-10 Pest suffers critical hit (Burn). 00594_ S-10 Pest destroyed. 00597_ Acquired 3 Protomatter. 00617_ R-06 Scavenger collects Flight Unit. 00620_ R-06 Scavenger collects Lgt. Assault Rifle. 00621_ R-06 Scavenger collects Lgt. Ion Engine. 00624_ R-06 Scavenger collects Flight Unit. 00717_ K-01 Serf collects debris. 00769_ K-01 Serf cleans the Terminal. 00850_ K-01 Serf collects debris. 01007_ K-01 Serf cleans the Terminal. 01140_ Acquired 28 matter. Map ----- +----------------------------------------------------+ | ?????????????????????????????????????????????????? | | ?????????????????????????????????????????????????? | | ?????????????????????????????????????????????????? | | ?????????????????????????????????????????????????? | | ?????????????????????????????????????????????????? | | ?????????????????????????????????????????????????? | | ?????????????????????????????????????????????????? | | ?????????????????????????????????????????????????? | | ?????????????????????????????????????????????????? | | ?????????????????????????????????????????????????? | | ??????????????????????? ???????????????????????+ | | ??????????????????????# ???????????????????????? | | ??????????????????????# #??????????????????????? | | ??????????????????????# #??????????????????????? | | ??????????????????????# #??????????????"???????? | | ??????????????????????# #??######????? "???????? | | ??????????????????????# #??? #???? |"#??????? | | ??????????????????????# #???" #???? ""#??????? | | ??????????###########?# #???? #??? |"#??????? | | ??????????# #?# #???? #?? "???????? | | ??????????# """ """ #?# #????? #?? ""????????? | | ??????????# """ """ #?# #????? #? #?????????? | | ??????????# """ """ #?# #######+## #######+#?? | | ??????????# """ """ #?# ^ ? | | ??????????# """!"!"=#?# ? | | ??????????# = [%= #?#% Y u ? | | ??????????# ! ### u#######+# """"""" ?? | | ????############+#####k ##! # """??????? | | ? ## #? """??????? | | ? ## """ #? """??????? | | ? ## """ #?? """??????? | | ?? ######### ##### ## """ #?? ??????? | | ?? ????????????# #???## ### #??? ??????? | | ???????????????# #????# #?# !#??? ?????? | | ???????????????# #????# #?##+####???? ????? | | ?????????????###+###### #???????????? ????? | | ?????????????# # #?????????????#?#??????? | | ?????????????# # #??? #??? ?????????????? | | ?????????????# # #### ### "?????????????? | | ?????????????# # ! # "?????????????? | | ?????????????# / + ??????????????? | | ?????????????# # " """ #???????????????? | | ?????????????# # T """ #???????????????? | | ?????????????# # " """ #??????????????? | | ?????????????# # #??????????????? | | ?????????????########## ! ################ | | ?????????????????????## | | ?????????????????????#" | | ?????????????????????#T | | ?????????????????????#" """ """ """ """ #? | +----------------------------------------------------+ Best States ------------- Heat Dissipation 36 Energy Generation 17 Energy Capacity 215 Matter Stores 100 Matter Capacity 100 Sight Range 16 Terrain Scan Density 10 Armor Coverage 150 Resistance: EX 50 Resistance: I 25 Evasion (%) 62 Recoil Reduction 2 Item Schematics ----------------- None Robot Schematics ------------------ None Fabricated ------------ Nothing Alien Tech Used ----------------- None Achievements -------------- None Challenges ------------ None Polymind | -11 -10 -9 ---------- Run | Yrd Mat Mat Hosts 4 | 1 1 2 Combat Hostiles 2 | . 1 1 Allies . | . . . Unique Host Classes 4 | 1 1 2 Average Host Suspicion 59 | . 70 54 Unsuspicious Activity 592 | 2 . 590 Returns to Shadow 1 | . . 1 Fuzzy Dispatches . | . . . Protomatter Created 71 | . 35 36 Used 39 | 5 6 28 Decayed 4 | . 4 . Highest Spend 23 | 5 6 23 Top 5 Hosts by Kills: Y-45 Defender (-9/Materials: 7) S-10 Pest (-10/Materials: 5) Game ------ Seed ScanBladeNullifier Manual? 0 Play Time 00:08:52 Cumulative 17.2 hours Start 2024.03.08 @ 16:53:50 End 2024.03.10 @ 01:54:29 Sessions 3 Manual Loads 0 Difficulty Rogue Special Mode Winter2022/Polymind Game No. 14 Rogue 8 Adventurer 6 Explorer 0 Win Type - Total 0 Types 0/0/0/0/0/0/0/0/0 Lore% 11 Gallery% 26 Achievement% 23 Wizard Run 0 Options --------- Layout 1 ASCII 0 Keyboard 0 Movement Arrows Keybinds 0 Fullscreen 2 Font 18/SmallcapsGlow Map View 51x43 Zoom Use 0% Tactical HUD 1 Map Filters NONE Filters NONE Steam 0 RUN: a394c147-fcb4-4e9f-a69b-ab5d44d3578a